bitfinex/quotes_BTCUSD_20240821
["timestamp","ask_amount","ask_price","bid_price","bid_amount"]
[1724257202338,0.000822,59618.0,59617.0,1.20056303]
[1724257202582,0.02712943,59618.0,59617.0,1.20056303]
[1724257202813,0.02712943,59618.0,59617.0,0.87455837]
[1724257203046,0.02712943,59618.0,59617.0,0.53908437]
[1724257203270,0.02712943,59618.0,59617.0,0.87455837]
[1724257203501,0.02712943,59618.0,59617.0,0.92446789]
[1724257203994,0.02712943,59618.0,59617.0,1.25994189]
[1724257204445,0.02712943,59618.0,59617.0,1.21003237]
[1724257205145,0.02712943,59618.0,59617.0,0.92474632]
[1724257205405,0.02712943,59618.0,59617.0,0.87884821]
[1724257205698,0.02712943,59618.0,59617.0,1.21432221]
[1724257205944,0.02712943,59618.0,59617.0,0.9537125]
[1724257206189,0.02712943,59618.0,59617.0,0.87884821]
[1724257206434,0.02712943,59618.0,59617.0,1.32576305]
[1724257206689,0.02712943,59618.0,59617.0,0.04016321]
[1724257207435,0.02712943,59618.0,59617.0,0.20790021]
[1724257207677,0.02712943,59618.0,59617.0,0.54337421]
[1724257207930,0.02712943,59618.0,59617.0,0.20790021]
[1724257208849,0.02712943,59618.0,59617.0,0.92479819]
[1724257209555,0.02712943,59618.0,59617.0,1.26027219]
[1724257210017,0.02712943,59618.0,59617.0,1.15587731]
[1724257210260,0.02712943,59618.0,59617.0,1.15871811]
[1724257211428,0.02712943,59618.0,59617.0,0.82324411]
[1724257211680,0.17222943,59618.0,59617.0,0.01231014]
[1724257211923,0.17222943,59618.0,59617.0,0.18004714]
[1724257212190,0.17222943,59618.0,59617.0,0.1705778]
[1724257212428,0.16774,59616.0,59615.0,0.00040385]
[1724257212658,0.17222943,59618.0,59615.0,0.00040385]
[1724257212895,0.17222943,59618.0,59615.0,0.16814585]
[1724257213355,0.33996343,59618.0,59615.0,0.16814585]
[1724257213583,0.17222943,59618.0,59616.0,0.01231662]
[1724257213826,0.10802943,59618.0,59616.0,0.18005562]
[1724257214073,0.02812943,59618.0,59617.0,0.167737]
[1724257214301,0.02812943,59618.0,59617.0,0.51552115]
[1724257214819,0.02712943,59618.0,59617.0,0.51552115]
[1724257215066,0.02812943,59618.0,59617.0,0.51552115]
[1724257215304,0.001822,59618.0,59617.0,1.18646915]
[1724257215555,0.002822,59618.0,59617.0,0.85499515]
[1724257215796,0.002822,59618.0,59617.0,0.85699515]
[1724257216018,0.001822,59618.0,59617.0,0.85299515]
[1724257216475,0.001822,59618.0,59617.0,0.9032591]
[1724257216707,0.001822,59618.0,59617.0,0.93149515]
[1724257216947,0.001822,59618.0,59617.0,1.9286792]
[1724257217180,0.001822,59618.0,59617.0,1.86330502]
[1724257217181,0.000822,59618.0,59617.0,1.86330502]
[1724257217403,0.000822,59618.0,59617.0,2.20777902]
[1724257217636,0.000822,59618.0,59617.0,2.20477902]
[1724257217881,0.000822,59618.0,59617.0,1.87230502]
[1724257218117,0.000822,59618.0,59617.0,1.87330502]
[1724257218357,0.000822,59618.0,59617.0,2.19977902]
[1724257218631,0.000822,59618.0,59617.0,2.21377902]
[1724257218632,0.001822,59618.0,59617.0,2.21377902]
[1724257218864,0.001822,59618.0,59617.0,2.21577902]
[1724257219092,0.000822,59618.0,59617.0,2.19877902]
[1724257219332,0.000822,59618.0,59617.0,2.20177902]
[1724257219561,0.000822,59618.0,59617.0,2.19872315]
[1724257219789,0.001822,59618.0,59617.0,2.21172461]
[1724257220014,0.001,59619.0,59618.0,1.31588328]
[1724257220240,0.001,59619.0,59618.0,1.85386474]
[1724257220503,0.001,59619.0,59618.0,2.20163742]
[1724257220742,0.001,59619.0,59618.0,2.63710642]
[1724257220970,0.00822,59625.0,59624.0,1.467922]
[1724257221221,0.00822,59625.0,59624.0,2.53630157]
[1724257221444,0.00822,59625.0,59624.0,2.55050872]
[1724257221904,0.00822,59625.0,59624.0,2.54856644]
[1724257222130,0.00822,59625.0,59624.0,2.56256644]
[1724257222625,0.00822,59625.0,59624.0,2.56450872]
[1724257222852,0.00822,59625.0,59624.0,2.57850872]
[1724257223081,0.00922,59625.0,59624.0,2.57656644]
[1724257223306,0.00922,59625.0,59624.0,2.52720333]
[1724257223531,0.00922,59625.0,59624.0,2.51320333]
[1724257223770,0.00922,59625.0,59624.0,2.65258147]
[1724257223994,0.00922,59625.0,59624.0,2.58050872]
[1724257224230,0.00822,59625.0,59624.0,2.90188644]
[1724257224525,0.00822,59625.0,59624.0,3.01164766]
[1724257224770,0.00822,59631.0,59630.0,1.51224628]
[1724257225047,0.00822,59631.0,59630.0,2.64647146]
[1724257225262,0.00822,59631.0,59630.0,2.65869752]
[1724257226181,0.00922,59631.0,59630.0,2.67269752]
[1724257226430,0.0092958,59638.0,59637.0,1.657429]
[1724257226654,0.0092958,59638.0,59637.0,2.11433198]
[1724257226887,0.0092958,59638.0,59637.0,2.12651278]
[1724257227612,0.0092958,59638.0,59637.0,2.48487478]
[1724257227836,0.0092958,59638.0,59637.0,3.03182039]
[1724257228301,0.0092958,59638.0,59637.0,2.97025822]
[1724257228528,0.0092958,59638.0,59637.0,2.99825822]
[1724257228768,0.0092958,59638.0,59637.0,3.10539531]
[1724257228991,0.0092958,59638.0,59637.0,2.99431594]
[1724257229224,0.0092958,59638.0,59637.0,2.99625822]
[1724257229487,0.02629487,59657.0,59656.0,0.838137]
[1724257229953,0.02629487,59657.0,59656.0,0.850195]
[1724257231131,0.02629487,59657.0,59656.0,0.52394]
[1724257231383,0.02629487,59657.0,59656.0,0.032058]
[1724257231384,0.10159487,59657.0,59656.0,0.032058]
[1724257231613,0.50314387,59657.0,59649.0,0.335294]
[1724257231836,0.50314387,59657.0,59651.0,0.16764]
[1724257231837,0.247731,59655.0,59651.0,0.16764]
[1724257232072,0.247731,59655.0,59650.0,0.01023316]
[1724257232073,0.0801,59655.0,59650.0,0.01023316]
[1724257232316,0.0801,59655.0,59652.0,0.167638]
[1724257232777,0.247731,59655.0,59651.0,0.167639]
[1724257232992,0.247731,59655.0,59650.0,0.335287]
[1724257232993,0.1409,59646.0,59641.0,0.335339]
[1724257233250,0.1409,59646.0,59645.0,0.167658]
[1724257233467,0.02629487,59657.0,59644.0,0.1421]
[1724257233468,0.0635,59651.0,59644.0,0.1421]
[1724257233727,0.0635,59651.0,59650.0,0.167644]
[1724257233962,0.19393861,59650.0,59645.0,0.01025141]
[1724257234174,0.335301,59648.0,59645.0,0.01025141]
[1724257234394,0.167657,59646.0,59642.0,0.167667]
[1724257234633,0.167657,59646.0,59645.0,0.0092879]
[1724257235075,0.167653,59647.0,59645.0,0.0092879]
[1724257235305,0.502966,59646.0,59645.0,0.0102879]
[1724257235746,0.502966,59646.0,59645.0,0.0092879]
[1724257235990,0.502966,59646.0,59645.0,0.0152879]
[1724257236682,0.0752,59648.0,59647.0,0.167653]
[1724257236904,0.0752,59648.0,59647.0,0.502959]
[1724257237129,0.02629361,59650.0,59649.0,0.502941]
[1724257237561,0.02629361,59650.0,59649.0,0.167647]
[1724257237782,0.02629361,59650.0,59649.0,0.502941]
[1724257238303,0.02629361,59650.0,59649.0,0.838235]
[1724257238758,0.02629361,59650.0,59649.0,0.839235]
[1724257239218,0.02629361,59650.0,59649.0,0.168647]
[1724257239463,0.10949361,59650.0,59649.0,0.169647]
[1724257239715,0.10949361,59650.0,59649.0,0.002]
[1724257239987,0.10949361,59650.0,59649.0,0.001]
[1724257239988,0.17179361,59650.0,59649.0,0.001]
[1724257240242,0.17179361,59650.0,59649.0,0.007]
[1724257240703,0.17179361,59650.0,59649.0,0.01123681]
[1724257240932,0.17179361,59650.0,59649.0,0.01223681]
[1724257241158,0.17179361,59650.0,59649.0,0.01123681]
[1724257241401,0.17179361,59650.0,59649.0,0.17888381]
[1724257241621,0.17179361,59650.0,59649.0,0.18588381]
[1724257241901,0.02629361,59650.0,59649.0,0.51417781]
[1724257242136,0.000821,59657.0,59649.0,0.40963081]
[1724257242394,0.000821,59657.0,59656.0,0.167627]
[1724257242872,0.000821,59657.0,59656.0,0.502882]
[1724257243111,0.000821,59657.0,59656.0,1.49152494]
[1724257243329,0.0002,59659.0,59658.0,0.83811]
[1724257243552,0.0002,59659.0,59658.0,1.33735698]
[1724257243795,0.0002,59659.0,59658.0,1.67260098]
[1724257244037,0.0002,59659.0,59658.0,1.68408045]
[1724257244511,0.0002,59659.0,59658.0,1.68508045]
[1724257245417,0.0002,59659.0,59658.0,1.68702273]
[1724257245642,0.0002,59659.0,59658.0,1.70102273]
[1724257245858,0.0002,59659.0,59658.0,1.70302273]
[1724257246303,0.0002,59659.0,59658.0,1.69908045]
[1724257246537,0.0002,59659.0,59658.0,1.71308045]
[1724257246763,0.0002,59659.0,59658.0,1.70108045]
[1724257247013,0.0002,59659.0,59658.0,1.68708045]
[1724257247233,0.0002,59659.0,59658.0,1.70302273]
[1724257248136,0.0002,59659.0,59658.0,1.71702273]
[1724257248575,0.0002,59659.0,59658.0,1.70731005]
[1724257249026,0.0002,59659.0,59658.0,1.72131005]
[1724257249471,0.0002,59659.0,59658.0,1.70731005]
[1724257249692,0.0002,59659.0,59658.0,1.72131005]
[1724257250540,0.0002,59659.0,59658.0,1.81702273]
[1724257251011,0.0002,59659.0,59658.0,1.89652273]
[1724257251669,0.0002,59659.0,59658.0,1.89158045]
[1724257251889,0.00011,59666.0,59665.0,1.173214]
[1724257252131,0.0833,59665.0,59661.0,0.335225]
[1724257252351,0.0833,59665.0,59664.0,0.167605]
[1724257252587,0.0833,59665.0,59664.0,0.502815]
[1724257253280,0.0833,59665.0,59662.0,0.33522]
[1724257253542,0.1447,59664.0,59663.0,0.502824]
[1724257254220,0.1447,59664.0,59663.0,0.167608]
[1724257254447,0.1447,59664.0,59663.0,0.502824]
[1724257254677,0.1447,59664.0,59663.0,0.83804]
[1724257255950,0.1447,59664.0,59663.0,0.84822573]
[1724257256387,0.1447,59664.0,59663.0,0.86122573]
[1724257256844,0.1447,59664.0,59663.0,0.02318573]
[1724257257057,0.312305,59664.0,59663.0,0.02747476]
[1724257257336,0.647515,59664.0,59663.0,0.02747476]
[1724257257578,0.647515,59664.0,59663.0,0.01728903]
[1724257257828,0.982725,59664.0,59663.0,0.01728903]
[1724257258074,1.48193798,59664.0,59663.0,0.01728903]
[1724257258310,1.60493798,59664.0,59663.0,0.01728903]
[1724257259021,1.60493798,59664.0,59663.0,0.01028903]
[1724257259506,1.60493798,59664.0,59663.0,0.00428903]
[1724257259983,1.60593798,59664.0,59663.0,0.00428903]
[1724257260237,0.502857,59659.0,59658.0,0.014]
[1724257260471,0.313719,59659.0,59658.0,0.014]
[1724257260916,0.34001077,59659.0,59658.0,0.014]
[1724257261447,0.67524877,59659.0,59658.0,0.014]
[1724257261692,1.17448975,59659.0,59658.0,0.014]
[1724257262573,1.50972775,59659.0,59658.0,0.016]
[1724257262818,1.63272775,59659.0,59658.0,0.016]
[1724257263252,1.96892385,59659.0,59658.0,0.016]
[1724257263480,1.96892385,59659.0,59658.0,0.014]
[1724257263729,1.96992385,59659.0,59658.0,0.015]
[1724257264180,1.97936526,59659.0,59658.0,0.015]
[1724257264602,2.08938724,59659.0,59658.0,0.015]
[1724257265076,1.321811,59650.0,59649.0,0.00040362]
[1724257265325,1.60881398,59650.0,59649.0,0.00040362]
[1724257265738,1.63511221,59650.0,59649.0,0.00040362]
[1724257266406,1.63611221,59650.0,59649.0,0.00140362]
[1724257266874,1.64566262,59650.0,59649.0,0.00140362]
[1724257268304,2.05850812,59650.0,59649.0,0.00140362]
[1724257269083,1.93856262,59650.0,59649.0,0.00140362]
[1724257269791,1.64566262,59650.0,59649.0,0.00140362]
[1724257270799,1.98095162,59650.0,59649.0,0.00140362]
[1724257271035,2.67880972,59650.0,59649.0,0.00140362]
[1724257271529,2.67880972,59650.0,59639.0,0.0009031]
[1724257271530,1.6104651,59640.0,59639.0,0.0009031]
[1724257271810,1.77446808,59640.0,59639.0,0.0009031]
[1724257272060,2.23281308,59640.0,59639.0,0.0009031]
[1724257272285,2.25911762,59640.0,59639.0,0.0009031]
[1724257272521,2.59446262,59640.0,59639.0,0.0009031]
[1724257272750,4.0289414,59640.0,59639.0,0.0009031]
[1724257272987,4.0289414,59640.0,59613.0,0.49319464]
[1724257272988,0.981572,59618.0,59613.0,0.49319464]
[1724257273233,1.48104398,59618.0,59613.0,0.49319464]
[1724257273463,1.58104398,59618.0,59613.0,0.0009031]
[1724257273716,1.60735357,59618.0,59613.0,0.0009031]
[1724257274643,1.27188457,59618.0,59613.0,0.0009031]
[1724257275347,0.29404359,59618.0,59613.0,0.0009031]
[1724257275582,0.62951259,59618.0,59613.0,0.0009031]
[1724257275819,0.12630959,59618.0,59613.0,0.0009031]
[1724257276054,0.29904359,59618.0,59613.0,0.0009031]
[1724257276546,0.63451259,59618.0,59613.0,0.0009031]
[1724257277452,0.62951259,59618.0,59613.0,0.0009031]
[1724257277741,0.71221259,59618.0,59613.0,0.0009031]
[1724257277992,1.37243898,59618.0,59613.0,0.0009031]
[1724257278226,1.27798457,59618.0,59613.0,0.0009031]
[1724257278689,1.27498457,59618.0,59613.0,0.0009031]
[1724257278932,1.61245357,59618.0,59613.0,0.0009031]
[1724257280128,1.61345357,59618.0,59613.0,0.0009031]
[1724257280375,1.61545357,59618.0,59613.0,0.0009031]
[1724257280613,1.67014094,59618.0,59613.0,0.0009031]
[1724257281521,1.61245357,59618.0,59613.0,0.0009031]
[1724257282252,0.63151259,59618.0,59613.0,0.1686501]
[1724257282757,0.63151259,59618.0,59613.0,0.0009031]
[1724257283256,0.29604359,59618.0,59614.0,0.167743]
[1724257283771,0.29604359,59618.0,59613.0,0.0009031]
[1724257284021,1.13098457,59618.0,59613.0,0.0009031]
[1724257285024,0.46004657,59618.0,59613.0,0.0009031]
[1724257285276,0.29604359,59618.0,59614.0,0.167745]
[1724257285518,0.29604359,59618.0,59613.0,0.1686501]
[1724257285750,0.63151259,59618.0,59613.0,0.0009031]
[1724257285985,0.29604359,59618.0,59614.0,0.167744]
[1724257286235,0.29604359,59618.0,59613.0,0.0009031]
[1724257286931,0.12830959,59618.0,59613.0,0.1686491]
[1724257287162,0.29404359,59618.0,59613.0,0.1686491]
[1724257287410,0.12630959,59618.0,59615.0,0.167742]
[1724257287633,0.29604359,59618.0,59613.0,0.1686491]
[1724257287912,0.29604359,59618.0,59614.0,0.167745]
[1724257288174,0.02630959,59618.0,59617.0,0.2287401]
[1724257288412,0.02630959,59618.0,59617.0,0.5642141]
[1724257288635,0.02630959,59618.0,59617.0,0.8996881]
[1724257291442,0.02630959,59618.0,59617.0,0.9769881]
[1724257292375,0.02630959,59618.0,59617.0,0.6415141]
[1724257292616,0.02630959,59618.0,59617.0,0.3060401]
[1724257293524,0.02630959,59618.0,59617.0,0.3100401]
[1724257293750,0.02630959,59618.0,59617.0,0.15275921]
[1724257293986,0.02630959,59618.0,59617.0,0.17909621]
[1724257294203,0.02630959,59618.0,59617.0,0.01135921]
[1724257294421,0.19404359,59618.0,59617.0,0.01335921]
[1724257294897,0.19404359,59618.0,59617.0,0.01135921]
[1724257295858,0.02630959,59618.0,59617.0,0.17909621]
[1724257296072,0.02630959,59618.0,59617.0,0.01135921]
[1724257296763,0.02630959,59618.0,59617.0,0.42363321]
[1724257297007,0.0665,59630.0,59617.0,0.42363321]
[1724257297008,0.335365,59637.0,59617.0,0.15085921]
[1724257297277,0.335365,59637.0,59627.0,0.307209]
[1724257297278,0.49229154,59637.0,59627.0,0.307209]
[1724257297503,1.29748221,59639.0,59635.0,0.167686]
[1724257297504,0.4776,59636.0,59635.0,0.167686]
[1724257297726,0.000822,59639.0,59638.0,0.167678]
[1724257297949,0.000822,59639.0,59638.0,0.503034]
[1724257298186,0.000822,59639.0,59638.0,0.83839]
[1724257299303,0.000822,59639.0,59638.0,0.503034]
[1724257300510,0.000822,59639.0,59638.0,0.83839]
[1724257300725,0.000822,59639.0,59638.0,0.503034]
[1724257300943,0.000822,59639.0,59637.0,0.167679]
[1724257301205,0.000822,59639.0,59631.0,0.1394]
[1724257301206,0.000822,59639.0,59638.0,0.167678]
[1724257301431,0.000822,59639.0,59638.0,0.17805742]
[1724257301666,0.000822,59639.0,59638.0,0.17905742]
[1724257301934,0.000822,59639.0,59638.0,0.18334939]
[1724257302567,0.000822,59639.0,59638.0,0.18434939]
[1724257302797,0.000822,59639.0,59638.0,0.18334939]
[1724257303020,0.000822,59639.0,59638.0,0.18234939]
[1724257303277,0.005822,59639.0,59638.0,0.18234939]
[1724257303494,0.005822,59639.0,59638.0,0.01467139]
[1724257303495,0.002822,59639.0,59638.0,0.01467139]
[1724257303711,0.003822,59639.0,59638.0,0.18234939]
[1724257304149,0.005822,59639.0,59638.0,0.18234939]
[1724257304369,0.005822,59639.0,59638.0,0.01467139]
[1724257304599,0.251497,59639.0,59638.0,0.01467139]
[1724257304844,1.15040198,59639.0,59638.0,0.01467139]
[1724257305064,1.15040198,59639.0,59638.0,0.00429197]
[1724257305291,0.167687,59635.0,59631.0,0.167696]
[1724257305759,0.33168298,59638.0,59632.0,0.01040133]
[1724257306005,0.33168298,59638.0,59634.0,0.167688]
[1724257306261,0.02630063,59635.0,59633.0,0.17808968]
[1724257306489,0.02630063,59635.0,59633.0,0.335384]
[1724257306720,0.02630063,59635.0,59634.0,0.167689]
[1724257306962,0.02630063,59635.0,59634.0,0.503068]
[1724257307922,0.02630063,59635.0,59634.0,0.506068]
[1724257308682,0.02630063,59635.0,59634.0,0.51646202]
[1724257308919,0.02630063,59635.0,59634.0,0.58166202]
[1724257309120,0.02630063,59635.0,59634.0,0.58266202]
[1724257309361,0.02630063,59635.0,59634.0,0.57966202]
[1724257309607,0.02630063,59635.0,59634.0,1.25142002]
[1724257309870,0.02630063,59635.0,59634.0,1.25042002]
[1724257310120,0.02630063,59635.0,59634.0,1.25142002]
[1724257310375,0.02630063,59635.0,59634.0,1.25442002]
[1724257311381,0.02630063,59635.0,59634.0,0.91904102]
[1724257311633,0.02630063,59635.0,59634.0,0.51646202]
[1724257311875,0.02730063,59635.0,59634.0,0.52246202]
[1724257312151,0.02630063,59635.0,59634.0,0.18108302]
[1724257312371,0.19398663,59635.0,59634.0,0.01039402]
[1724257312608,0.19398663,59635.0,59634.0,0.01839402]
[1724257312833,0.53035963,59635.0,59634.0,0.008]
[1724257313055,0.53035963,59635.0,59634.0,0.01739402]
[1724257313286,0.52935963,59635.0,59634.0,0.001]
[1724257313526,0.52935963,59635.0,59634.0,0.01139402]
[1724257313740,0.53018263,59635.0,59634.0,0.001]
[1724257314158,0.02712363,59635.0,59634.0,0.001]
[1724257314593,0.02712363,59635.0,59634.0,0.01139402]
[1724257314891,0.02712363,59635.0,59634.0,0.168689]
[1724257315128,0.02712363,59635.0,59634.0,0.01239402]
[1724257315344,0.02712363,59635.0,59634.0,0.51546202]
[1724257315564,0.02712363,59635.0,59634.0,0.01239402]
[1724257316207,0.02712363,59635.0,59634.0,0.18008302]
[1724257316431,0.02712363,59635.0,59634.0,0.51546202]
[1724257316669,0.02712363,59635.0,59634.0,0.93184102]
[1724257317129,0.02712363,59635.0,59634.0,0.85084102]
[1724257318997,0.33210963,59635.0,59634.0,0.01239402]
[1724257319245,0.53018263,59635.0,59634.0,0.01239402]
[1724257319465,0.02712363,59635.0,59634.0,0.01239402]
[1724257319692,0.02712363,59635.0,59634.0,0.002]
[1724257319927,0.19480963,59635.0,59634.0,0.01239402]
[1724257320144,0.53018263,59635.0,59634.0,0.01239402]
[1724257320373,0.19480963,59635.0,59634.0,0.01239402]
[1724257322944,0.02712363,59635.0,59634.0,0.15529402]
[1724257323172,0.02712363,59635.0,59634.0,0.99374102]
[1724257324604,0.02712363,59635.0,59634.0,0.01239402]
[1724257324842,0.53018263,59635.0,59634.0,0.01239402]
[1724257325086,1.02955861,59635.0,59634.0,0.01239402]
[1724257325329,1.36493161,59635.0,59634.0,0.01239402]
[1724257325584,1.3896619,59635.0,59634.0,0.002]
[1724257325837,1.64484761,59635.0,59634.0,0.002]
[1724257326068,2.27607871,59635.0,59634.0,0.002]
[1724257326565,2.27607871,59635.0,59634.0,0.001]
[1724257326806,2.44005749,59635.0,59634.0,0.001]
[1724257327046,2.44005749,59635.0,59634.0,0.002]
[1724257327047,2.44505749,59635.0,59634.0,0.002]
[1724257327285,2.44705749,59635.0,59634.0,0.002]
[1724257327503,2.44705749,59635.0,59618.0,0.0009053]
[1724257327504,0.976057,59619.0,59618.0,0.0009053]
[1724257327841,1.47552298,59619.0,59618.0,0.0009053]
[1724257328058,1.47552298,59619.0,59618.0,0.01135776]
[1724257328059,1.59852298,59619.0,59618.0,0.01135776]
[1724257328294,1.96325397,59619.0,59618.0,0.0009053]
[1724257328559,1.96125397,59619.0,59618.0,0.0009053]
[1724257328803,1.96125397,59619.0,59618.0,0.0019053]
[1724257328804,1.27436987,59619.0,59618.0,0.0019053]
[1724257329044,1.28936987,59619.0,59618.0,0.0009053]
[1724257329532,1.30702957,59619.0,59618.0,0.0019053]
[1724257329985,1.64249257,59619.0,59618.0,0.0019053]
[1724257330307,1.64249257,59619.0,59618.0,0.0029053]
[1724257330308,1.64849257,59619.0,59618.0,0.0029053]
[1724257330558,1.81342945,59619.0,59618.0,0.0029053]
[1724257331009,1.81542945,59619.0,59618.0,0.0029053]
[1724257331259,1.6490469,59619.0,59618.0,0.0029053]
[1724257331474,1.6410469,59619.0,59618.0,0.0019053]
[1724257331739,1.6570469,59619.0,59618.0,0.0029053]
[1724257331952,1.6550469,59619.0,59618.0,0.0029053]
[1724257332159,1.6490469,59619.0,59618.0,0.0019053]
[1724257332372,1.6620469,59619.0,59618.0,0.0029053]
[1724257332578,1.6470888,59619.0,59618.0,0.0019053]
[1724257332806,1.6610888,59619.0,59618.0,0.0029053]
[1724257333034,1.6480888,59619.0,59618.0,0.0019053]
[1724257333277,1.6610888,59619.0,59618.0,0.0029053]
[1724257333478,1.3256258,59619.0,59618.0,0.0029053]
[1724257333687,1.3026258,59619.0,59618.0,0.0029053]
[1724257333896,1.2409258,59619.0,59618.0,0.0029053]
[1724257334169,1.2269258,59619.0,59618.0,0.0019053]
[1724257334383,1.2409258,59619.0,59618.0,0.0019053]
[1724257334597,1.2269258,59619.0,59618.0,0.0019053]
[1724257335020,1.2629258,59619.0,59618.0,0.0019053]
[1724257335239,1.2499258,59619.0,59618.0,0.0009053]
[1724257335478,1.2629258,59619.0,59618.0,0.0019053]
[1724257336096,1.2499258,59619.0,59618.0,0.0009053]
[1724257336346,1.1742258,59619.0,59618.0,0.0009053]
[1724257336961,1.1872258,59619.0,59618.0,0.0019053]
[1724257337612,1.1642258,59619.0,59618.0,0.0019053]
[1724257337825,0.05230989,59619.0,59618.0,0.1696393]
[1724257338310,0.05230989,59619.0,59618.0,0.01172679]
[1724257338311,0.55550389,59619.0,59618.0,0.01172679]
[1724257338734,0.20704089,59619.0,59618.0,0.01172679]
[1724257338951,0.19404089,59619.0,59618.0,0.01072679]
[1724257339185,0.19404089,59619.0,59618.0,0.01172679]
[1724257339186,0.20104089,59619.0,59618.0,0.01172679]
[1724257339636,0.20104089,59619.0,59618.0,0.01272679]
[1724257339637,0.54950389,59619.0,59618.0,0.01272679]
[1724257339860,0.88496689,59619.0,59618.0,0.01272679]
[1724257340073,0.88496689,59619.0,59618.0,0.0029053]
[1724257340074,0.54950389,59619.0,59618.0,0.0029053]
[1724257340288,0.69350687,59619.0,59618.0,0.0009053]
[1724257340502,1.10496987,59619.0,59618.0,0.0009053]
[1724257340741,1.10996987,59619.0,59618.0,0.0009053]
[1724257340949,1.10496987,59619.0,59618.0,0.0009053]
[1724257341420,1.11096987,59619.0,59618.0,0.0019053]
[1724257341654,0.19404089,59619.0,59618.0,0.0009053]
[1724257341889,0.19404089,59619.0,59618.0,0.0019053]
[1724257341890,0.20504089,59619.0,59618.0,0.0019053]
[1724257342119,0.54050389,59619.0,59618.0,0.0019053]
[1724257342329,0.53450389,59619.0,59618.0,0.0009053]
[1724257342539,0.03130989,59619.0,59618.0,0.0009053]
[1724257342740,0.02630989,59619.0,59618.0,0.9850773]
[1724257342953,0.02830989,59619.0,59618.0,0.9850773]
[1724257343382,0.02830989,59619.0,59618.0,0.6496083]
[1724257343583,0.03230989,59619.0,59618.0,0.6506083]
[1724257343996,0.02630989,59619.0,59618.0,0.6496083]
[1724257344202,0.02630989,59619.0,59618.0,0.9900773]
[1724257344632,0.02630989,59619.0,59618.0,1.3255463]
[1724257344852,0.02630989,59619.0,59618.0,1.3265463]
[1724257345276,0.02630989,59619.0,59618.0,1.3275463]
[1724257345479,0.02630989,59619.0,59618.0,1.3265463]
[1724257345735,0.02630989,59619.0,59618.0,1.3315463]
[1724257345945,0.02630989,59619.0,59618.0,1.3305463]
[1724257346794,0.02630989,59619.0,59618.0,0.9950773]
[1724257347026,0.02630989,59619.0,59618.0,0.3241393]
[1724257347251,0.02630989,59619.0,59618.0,0.9950773]
[1724257347861,0.02630989,59619.0,59618.0,0.9900773]
[1724257348068,0.02630989,59619.0,59618.0,0.9850773]
[1724257348381,0.02630989,59619.0,59618.0,0.9870773]
[1724257348685,0.02630989,59619.0,59618.0,0.9850773]
[1724257348879,0.02630989,59619.0,59618.0,0.9860773]
[1724257349303,0.02630989,59619.0,59618.0,0.9910773]
[1724257350368,0.02713289,59619.0,59618.0,0.9910773]
[1724257350606,0.02713289,59619.0,59618.0,1.3265463]
[1724257350830,0.02713289,59619.0,59618.0,1.3255463]
[1724257351045,0.02713289,59619.0,59618.0,1.3305463]
[1724257351257,0.02713289,59619.0,59618.0,0.9950773]
[1724257354125,0.02713289,59619.0,59618.0,1.00326187]
[1724257355029,0.02713289,59619.0,59618.0,0.66779287]
[1724257355259,0.02713289,59619.0,59618.0,1.00326187]
[1724257355888,0.02713289,59619.0,59618.0,0.99826187]
[1724257357142,0.02713289,59619.0,59618.0,0.99326187]
[1724257357346,0.02713289,59619.0,59618.0,0.99526187]
[1724257357786,0.02713289,59619.0,59618.0,0.99826187]
[1724257359687,0.02713289,59619.0,59618.0,1.33373087]
[1724257359949,0.02713289,59619.0,59618.0,1.33473087]
[1724257360169,0.02713289,59619.0,59618.0,1.83420285]
[1724257360379,1e-08,59619.0,59618.0,2.30648728]
[1724257360604,1e-08,59619.0,59618.0,2.20619395]
[1724257360874,1e-08,59619.0,59618.0,2.3315499]
[1724257361061,1e-08,59619.0,59618.0,2.3265499]
[1724257361370,1e-08,59619.0,59618.0,2.3295499]
[1724257361563,0.00100001,59619.0,59618.0,2.3375499]
[1724257361780,0.00100001,59619.0,59618.0,2.3265499]
[1724257362022,0.000823,59635.0,59634.0,0.649568]
[1724257362224,0.000823,59635.0,59634.0,1.320326]
[1724257362451,0.000823,59635.0,59634.0,1.32846675]
[1724257363948,0.027122,59635.0,59634.0,1.32846675]
[1724257364385,0.030122,59635.0,59634.0,1.32846675]
[1724257364593,0.027122,59635.0,59634.0,1.32846675]
[1724257365044,0.028122,59635.0,59634.0,1.33946675]
[1724257365937,0.028122,59635.0,59634.0,1.67584575]
[1724257366622,0.001823,59635.0,59634.0,1.67584575]
[1724257366849,0.001823,59635.0,59634.0,1.83984873]
[1724257367072,0.001823,59635.0,59634.0,2.31199859]
[1724257367299,0.001823,59635.0,59634.0,2.40699859]
[1724257367300,0.000823,59635.0,59634.0,2.40699859]
[1724257367521,0.000823,59635.0,59634.0,2.43206804]
[1724257367741,0.000823,59635.0,59634.0,2.44306804]
[1724257367742,0.001823,59635.0,59634.0,2.44306804]
[1724257367952,0.000823,59635.0,59634.0,2.40087204]
[1724257368164,0.000823,59635.0,59634.0,2.30670958]
[1724257368398,0.001823,59635.0,59634.0,2.77829165]
[1724257368624,0.000823,59635.0,59634.0,2.76723499]
[1724257368868,0.001823,59635.0,59634.0,2.77223499]
[1724257369109,0.002823,59635.0,59634.0,2.66108858]
[1724257369537,0.002823,59635.0,59634.0,2.76117026]
[1724257369749,0.002823,59635.0,59634.0,2.78817727]
[1724257370229,0.002823,59635.0,59634.0,2.76307075]
[1724257370445,0.002823,59635.0,59634.0,2.76307263]
[1724257370656,0.002823,59635.0,59634.0,2.73806357]
[1724257370871,0.002823,59635.0,59634.0,2.66303086]
[1724257371095,0.002823,59635.0,59634.0,2.36620321]
[1724257371321,0.002823,59635.0,59634.0,2.35082725]
[1724257371565,0.002823,59635.0,59634.0,2.67266701]
[1724257371794,0.002823,59635.0,59634.0,2.74767181]
[1724257372020,0.02629514,59646.0,59645.0,1.95096828]
[1724257372251,0.07841,59666.0,59658.0,0.502866]
[1724257372252,0.00011,59666.0,59658.0,0.502866]
[1724257372504,0.00011,59666.0,59658.0,1.590798]
[1724257373216,0.00011,59666.0,59658.0,1.59887305]
[1724257374578,0.00011,59666.0,59658.0,1.66427305]
[1724257375260,0.00011,59666.0,59658.0,1.82827603]
[1724257375519,0.00011,59666.0,59665.0,1.173214]
[1724257375974,0.00011,59666.0,59665.0,1.2589699]
[1724257376707,0.00011,59666.0,59665.0,1.3243699]
[1724257376970,0.00011,59666.0,59665.0,1.82357688]
[1724257377445,0.00011,59666.0,59665.0,1.82786587]
[1724257377668,0.00011,59666.0,59665.0,1.82986587]
[1724257378397,0.00011,59666.0,59665.0,1.83886587]